Cogmind - Beta 14 @@@ ROGUE MODE // 2025.03.15 @ 13:49:26 Player: hoganstuff Result: Self-destructed Performance ------------- Evolutions (2) 1000 Regions Visited (5) 1000 Robots Destroyed (7) 35 Value Destroyed (201) 201 Prototype IDs (23) 460 Alien Tech Used (0) 0 Bonus (333) 333 TOTAL SCORE: 3029 Bonus ------- Follower Combat Kills 33 Aligned with FarCom 300 Cogmind --------- Core Integrity 493/550 Matter 300/300 Energy 250/250 System Corruption 0% Temperature Cool (0) Movement Treading (160) Location -8/Materials Parts ------- > --- POWER (1) -------- Ion Engine > --- PROPULSION (4) --- Light Treads Light Treads > --- UTILITY (4) ------ Large Storage Unit Visual Processing Unit Targeting Computer Core Shielding > --- WEAPON (2) ------- (None) > --- INVENTORY (15) --- Light Treads Medium Battery (150) Large Matter Pod (50) Structural Scanner Improved Sensor Array Beam Rifle AWS/Thermal Peak State ------------ > --- POWER ------------ Ion Engine > --- PROPULSION ------- Light Treads Light Treads Light Treads > --- UTILITY ---------- Large Storage Unit Visual Processing Unit Targeting Computer Core Shielding > --- WEAPON ----------- Heavy Assault Rifle Battle Cannon > --- INVENTORY -------- Light Treads Medium Battery Medium Matter Pod Structural Scanner Improved Sensor Array Beam Rifle AWS/Thermal [Rating: 15] Favorites ----------- Power Ion Engine Engine Ion Engine Propulsion Light Treads Treads Light Treads Utility Small Storage Unit Device Structural Scanner Storage Small Storage Unit Processor Targeting Computer Protection Core Shielding Weapon Heavy Assault Rifle Energy Gun Medium Laser Ballistic Gun Heavy Assault Rifle Ballistic Cannon Battle Cannon Build | -11 -10 -10 -10 -9 -8 ------- Run | Yrd Mat Min Exi Min Mat Slots Evolved 4 | . . . . . 4 Power . | . . . . . . Propulsion 2 | . . . . . 2 Utility 2 | . . . . . 2 Weapon . | . . . . . . Parts Attached 19 | 6 1 7 1 . 4 Power 1 | 1 . . . . . Engine 1 | 1 . . . . . Core . | . . . . . . Reactor . | . . . . . . Propulsion 5 | 2 . 2 . . 1 Treads 5 | 2 . 2 . . 1 Leg . | . . . . . . Wheel . | . . . . . . Hover . | . . . . . . Flight . | . . . . . . Utility 7 | 1 1 2 1 . 2 Device 1 | . 1 . . . . Storage 2 | 1 . . 1 . . Processor 2 | . . 1 . . 1 Hackware . | . . . . . . Protection 2 | . . 1 . . 1 Artifact . | . . . . . . Weapon 6 | 2 . 3 . . 1 Energy Gun 1 | 1 . . . . . Energy Cannon . | . . . . . . Ballistic Gun 3 | 1 . 2 . . . Ballistic Cannon 2 | . . 1 . . 1 Launcher . | . . . . . . Special Weapon . | . . . . . . Impact Weapon . | . . . . . . Slashing Weapon . | . . . . . . Piercing Weapon . | . . . . . . Special Melee Weapon . | . . . . . . Unidentified Prototypes . | . . . . . . Parts Lost 3 | . . . . . 3 Power . | . . . . . . Propulsion 1 | . . . . . 1 Utility . | . . . . . . Weapon 2 | . . . . . 2 Highest Loss Streak 3 | . . . . . 3 To Critical Strikes . | . . . . . . Average Slot Usage (%) 95 | . 96 100 100 100 73 Engine 13 | . 14 14 14 14 9 Treads 27 | . 28 28 28 28 21 Device 3 | . 10 6 . . . Storage 13 | . 14 14 14 14 9 Processor 9 | . . 7 14 14 12 Energy Gun 4 | . 14 5 . . . Ballistic Gun 14 | . 14 17 14 14 9 Ballistic Cannon 8 | . . 5 14 14 8 Peak Build Rating 15 | 6 7 9 11 11 15 Average Rating 8 | 4 6 7 9 11 12 On Entrance 7 | . 6 7 9 11 11 Naked Turns . | . . . . . . Heaviest Build 32 | 14 15 18 31 31 32 Greatest Support 60 | 40 40 40 40 40 60 Greatest Overweight (x) 4 | 4 . . . . . Average Overweight (x) . | 1 . . . . . Largest Inventory Capacity 15 | 8 8 8 15 15 15 Average Capacity 9 | 7 8 8 9 15 15 Most Carried 10 | . 3 8 9 9 10 Average Carried 6 | . 1 6 8 9 8 Final Capacity 15 | 8 8 8 15 15 15 Final Carried 9 | . 3 8 9 9 8 Class Distribution -------------------- 95% | Mutant 4% | Scavenger-Mutant Dominant Class ---------------- Mutant | -10/Materials Mutant | -10/Mines Mutant | -10/Exiles Mutant | -9/Mines Mutant | -8/Materials Resources | -11 -10 -10 -10 -9 -8 ----------- Run | Yrd Mat Min Exi Min Mat Matter Collected 565 | 230 61 163 . . 111 Remotely . | . . . . . . Salvage Created 221 | . 84 103 . . 34 Parts 12 | . 3 7 . . 2 Haulers Intercepted . | . . . . . . Recyclers Shooed . | . . . . . . Parts Field Recycled . | . . . . . . Retrieved Matter . | . . . . . . Parts Self-Destructed . | . . . . . . Prevented . | . . . . . . Kills | -11 -10 -10 -10 -9 -8 ------- Run | Yrd Mat Min Exi Min Mat Combat Hostiles Destroyed 6 | . 2 4 . . . Guns 6 | . 2 4 . . . Classes Destroyed 4 | . 1 2 . . 1 Watcher 1 | . . . . . 1 Swarmer 3 | . . 3 . . . Grunt 2 | . 2 . . . . Sentry 1 | . . 1 . . . Best Kill Streak 3 | . 1 3 . . 1 Combat Bots Only 3 | . 1 3 . . . Max Kills in Single Turn 1 | . 1 1 . . 1 Gunslinging . | . . . . . . Exploded . | . . . . . . Melee . | . . . . . . Uniques/NPCs Destroyed . | . . . . . . Combat | -11 -10 -10 -10 -9 -8 -------- Run | Yrd Mat Min Exi Min Mat Hostile Shots Fired 65 | . 25 13 . . 27 Missed 25 | . 13 3 . . 9 Damage Taken 626 | . 168 128 . . 330 Core 112 | . 47 8 . . 57 Absorbed by Shields . | . . . . . . Redirected to Shielding 12 | . . . . . 12 Core Remaining (%) 89 | 100 . . . 78 . Volleys Fired 26 | . 16 9 . . 1 Largest 2 | . 2 2 . . 2 Hottest 70 | . 70 70 . . 62 Shots Fired 52 | . 32 18 . . 2 Gun 51 | . 32 18 . . 1 Cannon 1 | . . . . . 1 Launcher . | . . . . . . Special . | . . . . . . Kinetic 27 | . 16 9 . . 2 Thermal 25 | . 16 9 . . . Explosive . | . . . . . . Electromagnetic . | . . . . . . Robot Hit Streak 9 | . 9 5 . . 7 Robot Miss Streak 5 | . 5 2 . . . Penetration Max . | . . . . . . Secondary Targets 1 | . . 1 . . . Max Gunslinging Chain 1 | . . 1 . . . Shots Hit Robots 34 | . 20 12 . . 2 Core Hits 13 | . 5 5 . 1 2 Critical Kills . | . . . . . . Critical Parts Destroyed . | . . . . . . Critical Strikes 2 | . 1 1 . . . Burn 2 | . 1 1 . . . Melee Attacks . | . . . . . . Impact . | . . . . . . Slashing . | . . . . . . Piercing . | . . . . . . Sneak Attacks . | . . . . . . Combat Hostiles . | . . . . . . Follow-up Attacks . | . . . . . . Damage Inflicted 446 | . 251 147 . 8 40 Guns 415 | . 251 147 . . 17 Cannons 23 | . . . . . 23 Explosions . | . . . . . . Melee . | . . . . . . Ramming 8 | . . . . 8 . Kinetic 252 | . 127 85 . . 40 Thermal 186 | . 124 62 . . . Explosive . | . . . . . . Electromagnetic . | . . . . . . Impact . | . . . . . . Slashing . | . . . . . . Piercing . | . . . . . . Highest Corruption . | . . . . . . Average Corruption . | . . . . . . Corruption Purged . | . . . . . . Corruption Blocked . | . . . . . . Overload Shots . | . . . . . . Overflow Damage . | . . . . . . Projectiles . | . . . . . . Explosions . | . . . . . . Melee . | . . . . . . Knockbacks . | . . . . . . Impact . | . . . . . . Kinetic . | . . . . . . Secondary . | . . . . . . Self-Inflicted Damage . | . . . . . . Shots . | . . . . . . Rammed 3 | . . . . 3 . Targets Rammed 3 | . . . . 3 . Kicked . | . . . . . . Crushed . | . . . . . . Highest Temperature 117 | . 117 27 . . . Average Temperature 42 | . 56 15 . . . Received Heat Transfer 120 | . 93 27 . . . Siege Activations . | . . . . . . Robots Corrupted . | . . . . . . Combat Hostiles . | . . . . . . Parts Fried . | . . . . . . Impact Corruptions . | . . . . . . Robots Melted . | . . . . . . Combat Hostiles . | . . . . . . Parts Melted 2 | . 1 1 . . . Heat Transferred 703 | . 444 259 . . . Parts Sabotaged . | . . . . . . Parts Stolen . | . . . . . . Parts Stripped . | . . . . . . Power Chain Reactions . | . . . . . . Alert | -11 -10 -10 -10 -9 -8 ------- Run | Yrd Mat Min Exi Min Mat Peak Influence 196 | . 153 196 . 30 18 Initial 59 | . . 59 . . 11 Average 79 | . 61 168 . 2 13 Maximum Alert Level . | . . . . . . Low Security (%) 100 | 100 100 100 . 100 100 Level 1 . | . . . . . . Level 2 . | . . . . . . Level 3 . | . . . . . . Level 4 . | . . . . . . Level 5 . | . . . . . . High Security . | . . . . . . Max Security . | . . . . . . Squads Dispatched 2 | . 2 . . . . Investigation 1 | . 1 . . . . Extermination . | . . . . . . Reinforcement 1 | . 1 . . . . Assault . | . . . . . . Garrison . | . . . . . . Intercept . | . . . . . . Searches Triggered . | . . . . . . Construction Impeded . | . . . . . . Haulers Reinforced . | . . . . . . Active Scanning Responses . | . . . . . . Cargo Convoy Interrupts . | . . . . . . Stealth | -11 -10 -10 -10 -9 -8 --------- Run | Yrd Mat Min Exi Min Mat Distress Signals 1 | . 1 . . . . Communications Jammed . | . . . . . . Distress Signals . | . . . . . . Times Spotted 18 | . 7 5 . . 6 Peak Tracking Total 4 | . 3 3 . 2 4 Tactical Retreats 2 | . 1 . . 1 . Traps | -11 -10 -10 -10 -9 -8 ------- Run | Yrd Mat Min Exi Min Mat Traps Triggered 1 | . 1 . . . . Indirectly . | . . . . . . Trap Hack Attempts . | . . . . . . Triggered . | . . . . . . Disarmed . | . . . . . . Reprogrammed . | . . . . . . Reused . | . . . . . . Traps Extracted . | . . . . . . Installed . | . . . . . . Triggered . | . . . . . . Machines | -11 -10 -10 -10 -9 -8 ---------- Run | Yrd Mat Min Exi Min Mat Machines Disabled 2 | . 2 . . . . Max in Single Turn 2 | . 2 . . . . Machines Repaired . | . . . . . . Machines Dismantled . | . . . . . . Machines Sabotaged . | . . . . . . Overloaded Fab Kills . | . . . . . . Hacking | -11 -10 -10 -10 -9 -8 --------- Run | Yrd Mat Min Exi Min Mat Machines Accessed 4 | . 2 . 1 . 1 Terminals 3 | . 2 . . . 1 Fabricators . | . . . . . . Repair Stations . | . . . . . . Recycling Units . | . . . . . . Scanalyzers . | . . . . . . Garrison Access . | . . . . . . Total Hacks 9 | . 6 . 1 . 2 Successful 4 | . 3 . 1 . . Failed 5 | . 3 . . . 2 Catastrophic 2 | . 2 . . . . Database Lockouts . | . . . . . . Manual 9 | . 6 . 1 . 2 Terminals 8 | . 6 . . . 2 Fabricators . | . . . . . . Repair Stations . | . . . . . . Recycling Units . | . . . . . . Scanalyzers . | . . . . . . Garrison Access . | . . . . . . Terminal Hacks 2 | . 1 . 1 . . Terminal Index 1 | . 1 . . . . Derelict Proto ID Bank 1 | . . . 1 . . Fabricator Hacks . | . . . . . . Repair Station Hacks . | . . . . . . Recycling Unit Hacks . | . . . . . . Scanalyzer . | . . . . . . Garrison Access Hacks . | . . . . . . Unauthorized Hacks 2 | . 2 . . . . Terminals 2 | . 2 . . . . Botnet 2 | . 2 . . . . Fabricators . | . . . . . . Repair Stations . | . . . . . . Recycling Units . | . . . . . . Scanalyzers . | . . . . . . Garrison Access . | . . . . . . Data Cores Recovered . | . . . . . . Used . | . . . . . . Hacking Detections 3 | . 2 . . . 1 Full Trace Events 1 | . 1 . . . . Feedback Events . | . . . . . . Feedback Blocked . | . . . . . . Robot Schematics Acquired . | . . . . . . Robots Built . | . . . . . . Authchips . | . . . . . . Time . | . . . . . . Total Robot Build Rating . | . . . . . . Part Schematics Acquired . | . . . . . . Parts Built . | . . . . . . Authchips . | . . . . . . Time . | . . . . . . Total Part Build Rating . | . . . . . . Parts Repaired . | . . . . . . Time . | . . . . . . Parts Recycled . | . . . . . . Recycled Matter . | . . . . . . Retrieved Matter . | . . . . . . Retrieved Components . | . . . . . . Parts Scanalyzed . | . . . . . . Part Schematics Acquired . | . . . . . . Parts Damaged . | . . . . . . Bothacking | -11 -10 -10 -10 -9 -8 ------------ Run | Yrd Mat Min Exi Min Mat Used RIF Installer . | . . . . . . Robots Hacked . | . . . . . . Non-combat . | . . . . . . Combat . | . . . . . . Robot Hacks Applied . | . . . . . . Relay Couplers Released . | . . . . . . Fabnet Peak Effective % . | . . . . . . Robots Rewired . | . . . . . . Allies Hacked . | . . . . . . Hacks Repelled . | . . . . . . Allies | -11 -10 -10 -10 -9 -8 -------- Run | Yrd Mat Min Exi Min Mat Total Allies 2 | . . 2 . . . Largest Group 2 | . . 2 2 . . Highest-Rated Group 47 | . . 47 47 . . Highest-Rated Ally 31 | . . 31 31 . . Total Orders . | . . . . . . Ally Attacks 13 | . . 13 . . . Total Damage 211 | . . 211 . . . Kills 1 | . . 1 . . . Allies Corrupted . | . . . . . . Allies Melted . | . . . . . . Intel | -11 -10 -10 -10 -9 -8 ------- Run | Yrd Mat Min Exi Min Mat Robot Analysis Total . | . . . . . . Derelict Logs Recovered 1 | . . . . 1 . Drone Launches . | . . . . . . Drone Recoveries . | . . . . . . Exploration | -11 -10 -10 -10 -9 -8 ------------- Run | Yrd Mat Min Exi Min Mat Turns Passed 1393 | 69 275 317 471 58 203 Spaces Moved 737 | 37 140 168 292 34 66 Core 16 | 16 . . . . . Treads 721 | 21 140 168 292 34 66 Legs . | . . . . . . Wheels . | . . . . . . Hover . | . . . . . . Flight . | . . . . . . Fastest Speed 50 | 50 160 160 160 160 160 Average Speed 160 | 166 160 160 160 160 160 Slowest Speed 250 | 250 160 160 160 160 160 Overloaded Moves . | . . . . . . Propulsion Burnouts . | . . . . . . Robots Hopped . | . . . . . . Cave-ins Triggered . | . . . . . . Exploration Rate (%) 26 | 4 32 39 64 11 9 Regions Visited 5 Branch Regions 3 Pre-discovered Areas . | . . . . . . Known Exits Taken . | . . . . . . Unknown Exits Taken 5 | 1 1 1 1 1 . Scrap Searched . | . . . . . . Spaces Dug . | . . . . . . Terrain Destroyed 17 | . 17 . . . . Melee . | . . . . . . Projectile . | . . . . . . AOE 17 | . 17 . . . . Terrain Rammed . | . . . . . . Walls Destroyed . | . . . . . . Machines Disabled . | . . . . . . Actions | -11 -10 -10 -10 -9 -8 --------- Run | Yrd Mat Min Exi Min Mat Total 891 | 42 159 197 297 36 160 Wait 88 | . . 2 . . 86 Move 732 | 36 139 167 291 33 66 Hop . | . . . . . . Pick Up 14 | . 3 7 2 . 2 Fast Attach 9 | 6 1 . . . 2 Attach 2 | . . . . . 2 Detach . | . . . . . . Swap 8 | . . 7 1 . . Drop 9 | . . 5 3 . 1 Fire 26 | . 16 9 . . 1 Melee . | . . . . . . Ram . | . . . . . . Kick . | . . . . . . Crush 3 | . . . . 3 . Escape Stasis . | . . . . . . Rewire . | . . . . . . Trap . | . . . . . . Miscellaneous . | . . . . . . Route ------- -11/Scrapyard -10/Materials -10/Mines -10/Exiles -9/Mines -8/Materials History --------- Turn | Location | Event 16 | -11/Scrapyard | Discovered new exit (range 15) 70 | -11/Scrapyard | Entered Materials 277 | -10/Materials | Discovered new exit (range 14) 306 | -10/Materials | Build established: Mutant 345 | -10/Materials | Entered Mines 543 | -10/Mines | A weapon hastily lodged in a ceiling crevice suddenly fell to the ground 575 | -10/Mines | Found a hidden stash of uninstalled traps 618 | -10/Mines | Deemed a non-threat by the Exiles lab entrance 618 | -10/Mines | Discovered new exit (range 5) 662 | -10/Mines | Entered Exiles 662 | -10/Exiles | Accompanied by 2 allies 692 | -10/Exiles | Led the pair of lost Derelicts to a safe place 709 | -10/Exiles | Met 8R-AWN 736 | -10/Exiles | Met EX-HEX 843 | -10/Exiles | Met EX-BIN 862 | -10/Exiles | Aligned with FarCom system 864 | -10/Exiles | Given EX-Vault access code 904 | -10/Exiles | Opened EX-Vault 912 | -10/Exiles | Found AWS/Thermal 943 | -10/Exiles | Warned to stay clear of 0b10 Research branches 971 | -10/Exiles | Exiles lab attacked by MAIN.C 1118 | -10/Exiles | Discovered new exit (range 10) 1133 | -10/Exiles | Left Exiles lab with AWS/Thermal 1133 | -10/Exiles | Entered Mines 1134 | -9/Mines | Assembled infested the area 1141 | -9/Mines | Learned Materials trap positions 1175 | -9/Mines | Discovered new exit (range 7) 1191 | -9/Mines | Entered Materials 1191 | -8/Materials | Evolved 4 slots: Propulsion x2, Utility x2 1192 | -8/Materials | Loaded intel: 12 trap records 1394 | -8/Materials | Self-destructed Last Messages --------------- Loading Materials trap records (x12)... 01307_ W-25 Informer destroyed. 01312_ Acquired Imp. Sensor Array. 01313_ Acquired 34 matter. 01316_ Acquired Visual Processing Unit. 01330_ Dropped Med. Matter Pod. 01332_ Acquired Lrg. Matter Pod. 01333_ Extracted 69 matter. 01350_ K-01 Serf collects debris. 01354_ Connecting with Terminal... 01354_ Current location identified: Materials 01356_ K-01 Serf collects debris. 01379_ Acquired 8 matter. 01381_ Battle Cannon blasted off. 01384_ Acquired Battle Cannon. 01385_ Battle Cannon destroyed. 01386_ K-01 Serf collects debris. 01391_ Hvy. Assault Rifle destroyed. 01392_ T-07 Excavator is excavating. 01392_ Lgt. Treads destroyed. Map ----- +----------------------------------------------------+ | | | | | | | | | | | | | | | | | | | ?????????????????????????????????????????????????? | | ?????????????????????????????????????????????????? | | ???????????????????????#?????????????????????????? | | ??????????????????????? ?????????????????????????? | | ???????????????????????"?????????????????????????? | | ??????????????????????"" ????????????????????????? | | ??????????????????????"" ????????????????????????? | | ?????????????????????? ????????????????????????? | | ??????????????????????"" ?????????????????######## | | ??????????????????????"" ?????????????????# | | ???????????????????????" ?????????????????# """" | | ??????????????????????? ?????????????##### """" | | ???????????????????????#;+##??????????# # """" | | ???????????????????????# #??????????# # """" | | ???????????????????????# ####???????# # """" | | ???????????????######?Y# # t#???????# + """" | | ???????????????# ??# @ #???????# #! """" | | ???????????????# """ ?# # #???????# #% | | ???????????????# """ ?# %#?????????## ######## | | ???????????????# """ # ########### #?????? | | ???????????????# #% #?????? | | ???????????????# !! + #?????? | | ???????????????# !! # #?????? | | ???????????????# ! # ########### #?????? | | ???????????????# ?; #?????????###+######??? | | ???????????????# ?# #?????????# #?? | | ???????????????# ??# #?????????# T #?? | | ???????????????######??# ss#?????????# #?? | | ???????????????????????# #?????????# """ """ #?? | | ???????????????????????#H #?????????# """ """ #?? | | ??????????????????????? s ?????????# """ """ #?? | | ??????????????????????? / ?????????# #?? | | ?????????????????????? ?????????# #?? | | ?????????????????????? ! #????????###########?? | | ??????????????????????# #????????????????????? | | ??????????????????????## ##????????????????????? | | ?????????^^^???????????# #?????????????????????? | | ?????????^^^???????????? ??????????????????????? | | ???????????????????????? ??????????????????????? | | ?????????????????????????????????????????????????? | | ?????????????????????????????????????????????????? | +----------------------------------------------------+ Best States ------------- Heat Dissipation 31 Energy Generation 10 Energy Capacity 250 Matter Stores 300 Matter Capacity 300 Sight Range 18 Terrain Scan Density 10 Core Shielding 20 Evasion (%) 40 Targeting Accuracy 5 Recoil Reduction 3 Item Schematics ----------------- None Robot Schematics ------------------ None Fabricated ------------ Nothing Alien Tech Used ----------------- None Achievements -------------- None Challenges ------------ None Game ------ Seed WaveShieldStatue Manual? 0 Play Time 00:13:26 Cumulative 56.2 hours Start 2025.03.13 @ 21:11:49 End 2025.03.15 @ 13:49:26 Sessions 3 Manual Loads 0 Difficulty Rogue Special Mode None Game No. 45 Rogue 39 Adventurer 6 Explorer 0 Win Type - Total 0 Types 0/0/0/0/0/0/0/0/0 Lore% 31 Gallery% 40 Achievement% 35 Wizard Run 0 Options --------- Layout 1 ASCII 0 Keyboard 0 Movement Arrows Keybinds 0 Fullscreen 2 Font 24/Smallcaps Map View 50x35 Zoom Use 3% Tactical HUD 1 Map Filters NONE Filters NONE Steam 1 RUN: 00b77809-feff-4070-9ce3-8e52a4b9d937